fUSD/lending_fUSD_20240515
["ID","MTS","AMOUNT","RATE_DAILY","PERIOD"]
[327063459,1715771439932,-5939.9276,0.00011791,2]
[327063460,1715771439942,-3563.63108086,0.00011791,2]
[327063461,1715771440000,-5000.0,0.00011791,2]
[327063462,1715771440011,-11281.41034226,0.00011791,2]
[327063463,1715771440025,-5140.3720589,0.00011791,2]
[327063466,1715771440432,-582.24086111,0.00011791,2]
[327063467,1715771440690,-638.26452982,0.00011791,2]
[327063468,1715771440702,-30483.29272705,0.00011791,2]
[327063469,1715771440711,-3884.8061,0.00011791,2]
[327063470,1715771440722,-500.0,0.00011794,2]
[327063471,1715771440731,-500.0,0.00011795,2]
[327063472,1715771440741,-188.59770756,0.00011798,2]
[327063473,1715771440751,-200.0,0.00011798,2]
[327063474,1715771440760,-1000.0,0.00011798,2]
[327063475,1715771440770,-500.0,0.00011798,2]
[327063476,1715771440780,-500.0,0.00011799,2]
[327063477,1715771440790,-500.0,0.00011799,2]
[327063478,1715771440799,-500.0,0.00011799,2]
[327063479,1715771440809,-500.0,0.00011799,2]
[327063480,1715771440819,-500.0,0.00011799,2]
[327063481,1715771440828,-500.0,0.00011799,2]
[327063482,1715771440839,-585.48,0.00011799,2]
[327063483,1715771440848,-476.43599691,0.00011799,2]
[327063484,1715771440858,-242.34129896,0.00011799,2]
[327063485,1715771440868,-500.0,0.00011799,2]
[327063486,1715771440878,-500.0,0.00011799,2]
[327063487,1715771440887,-639.4,0.00011799,2]
[327063488,1715771440897,-500.0,0.00011799,2]
[327063489,1715771440905,-500.0,0.00011799,2]
[327063490,1715771440915,-1634.64,0.00011799,2]
[327063491,1715771440924,-500.0,0.00011799,2]
[327063492,1715771440934,-500.0,0.00011799,2]
[327063493,1715771440943,-500.0,0.00011799,2]
[327063494,1715771440953,-500.0,0.00011799,2]
[327063496,1715771440962,-158.78192363,0.00011799,2]
[327063497,1715771440971,-500.0,0.00011799,2]
[327063498,1715771440981,-500.0,0.00011799,2]
[327063499,1715771440990,-500.0,0.00011799,2]
[327063500,1715771440999,-500.0,0.00011799,2]
[327063501,1715771441009,-500.0,0.00011799,2]
[327063502,1715771441018,-500.0,0.00011799,2]
[327063503,1715771441028,-11101.02419467,0.000118,2]
[327063509,1715771443173,-1245.9747,0.000117,2]
[327063510,1715771443183,-500.0,0.00011799,2]
[327063511,1715771443192,-500.0,0.00011799,2]
[327063512,1715771443201,-28690.32889444,0.000118,2]
[327063521,1715771443442,-157790.41030679,0.000118,2]
[327063522,1715771443453,-1022.0,0.000118,2]
[327063523,1715771443463,-500.0,0.00011802,2]
[327063524,1715771443473,-1059.0,0.00011808,2]
[327063525,1715771443482,-186.93391276,0.00011812,2]
[327063526,1715771443491,-900.54106739,0.00011812,2]
[327063527,1715771443501,-11491.54687743,0.00011812,2]
[327063528,1715771443511,-500.0,0.00011819,2]
[327063529,1715771443521,-634.58406322,0.00011819,2]
[327063530,1715771443530,-500.0,0.00011819,2]
[327063531,1715771443540,-1213.14,0.00011819,2]
[327063532,1715771443550,-380.44,0.00011819,2]
[327063533,1715771443560,-500.0,0.00011819,2]
[327063534,1715771443569,-500.0,0.00011819,2]
[327063535,1715771443579,-500.0,0.00011819,2]
[327063536,1715771443588,-167.8,0.0001182,2]
[327063537,1715771443600,-355.44882989,0.0001182,2]
[327063538,1715771443609,-668.5,0.0001182,2]
[327063539,1715771443618,-225.25,0.0001182,2]
[327063540,1715771443627,-500.0,0.0001182,2]
[327063541,1715771443637,-500.0,0.0001182,2]
[327063542,1715771443646,-500.0,0.0001182,2]
[327063543,1715771443656,-500.0,0.0001182,2]
[327063544,1715771443665,-500.0,0.0001182,2]
[327063545,1715771443674,-500.0,0.0001182,2]
[327063546,1715771443684,-500.0,0.0001182,2]
[327063547,1715771443693,-500.0,0.0001182,2]
[327063548,1715771443702,-500.0,0.0001182,2]
[327063549,1715771443713,-500.0,0.0001182,2]
[327063550,1715771443723,-150.127,0.00011823,2]
[327063551,1715771443732,-1399.0,0.00011823,2]
[327063552,1715771443742,-2090.87799084,0.00011823,2]
[327063553,1715771443754,-65.12200916,0.00011823,2]
[327063554,1715771443764,-596.19113144,0.00011823,2]
[327063560,1715771447136,-500.0,0.00011799,2]
[327063561,1715771447146,-271.87376776,0.00011799,2]
[327063562,1715771447156,-376.80886856,0.00011823,2]
[327063563,1715771447166,-1261.0,0.00011823,2]
[327063564,1715771447175,-1790.0,0.00011823,2]
[327063565,1715771447185,-207.2115085,0.00011823,2]
[327063566,1715771447197,-1017.7884915,0.00011823,2]
[327063567,1715771447206,-543.0,0.00011823,2]
[327063568,1715771447215,-782.57909698,0.00011823,2]
[327063569,1715771447402,-25.42090302,0.00011823,2]
[327063570,1715771447413,-407.38368598,0.00011823,2]
[327063571,1715771447425,-14.61631402,0.00011823,2]
[327063572,1715771447434,-612.0,0.00011823,2]
[327063573,1715771447443,-437.0,0.00011823,2]
[327063574,1715771447453,-150.0,0.00011823,2]
[327063575,1715771447463,-2351.0,0.00011823,2]
[327063576,1715771447472,-1647.0,0.00011823,2]
[327063577,1715771447482,-150.0,0.00011823,2]
[327063578,1715771447490,-1138.0,0.00011823,2]
[327063579,1715771447500,-215.0,0.00011823,2]
[327063580,1715771447509,-3158.0,0.00011823,2]
[327063581,1715771447518,-444.0,0.00011823,2]
[327063582,1715771447527,-288.0,0.00011823,2]
[327063583,1715771447536,-5751.0,0.00011823,2]
[327063584,1715771447545,-1047.0,0.00011823,2]
[327063585,1715771447554,-500.0,0.00011829,2]
[327063586,1715771447563,-500.0,0.00011829,2]
[327063587,1715771447571,-500.0,0.00011829,2]
[327063588,1715771447581,-282.3848,0.00011839,2]
[327063589,1715771447590,-500.0,0.00011851,2]
[327063590,1715771447599,-500.0,0.00011851,2]
[327063591,1715771447608,-1213.14,0.00011851,2]
[327063592,1715771447617,-500.0,0.00011851,2]
[327063593,1715771447626,-547.51,0.00011851,2]
[327063594,1715771447636,-500.0,0.00011851,2]
[327063595,1715771447645,-198.88015174,0.00011878,2]
[327063596,1715771447654,-631.62,0.00011881,2]
[327063597,1715771447663,-500.0,0.00011881,2]
[327063598,1715771447672,-500.0,0.00011881,2]
[327063599,1715771447680,-500.0,0.00011881,2]
[327063600,1715771447689,-574.14,0.00011881,2]
[327063601,1715771447698,-500.0,0.00011881,2]
[327063602,1715771447707,-500.0,0.00011881,2]
[327063603,1715771447716,-420.02125956,0.00011881,2]
[327063604,1715771447724,-500.0,0.00011881,2]
[327063605,1715771447735,-518.73977334,0.00011881,2]
[327063606,1715771447744,-500.0,0.00011881,2]
[327063607,1715771447753,-1017.85,0.00011881,2]
[327063608,1715771447763,-208.29299492,0.00011881,2]
[327063609,1715771447771,-510.91,0.00011881,2]
[327063610,1715771447780,-500.0,0.00011881,2]
[327063611,1715771447790,-500.0,0.00011881,2]
[327063612,1715771447799,-500.0,0.00011881,2]
[327063613,1715771447808,-257.20430238,0.00011881,2]
[327063614,1715771447816,-500.0,0.00011881,2]
[327063615,1715771447825,-500.0,0.00011881,2]
[327063616,1715771447834,-359.87,0.00011881,2]
[327063617,1715771447842,-187.73435027,0.00011881,2]
[327063618,1715771447851,-500.0,0.00011881,2]
[327063619,1715771447860,-632.58,0.00011881,2]
[327063620,1715771447869,-500.0,0.00011881,2]
[327063621,1715771447878,-500.0,0.00011881,2]
[327063622,1715771447887,-500.0,0.00011881,2]
[327063623,1715771447896,-500.0,0.00011881,2]
[327063624,1715771447905,-500.0,0.00011881,2]
[327063625,1715771447914,-500.0,0.00011881,2]
[327063626,1715771447922,-500.0,0.00011881,2]
[327063627,1715771447931,-1554.03,0.00011881,2]
[327063628,1715771447941,-500.0,0.00011881,2]
[327063629,1715771447950,-500.0,0.00011881,2]
[327063630,1715771447958,-500.0,0.00011881,2]
[327063631,1715771447967,-500.0,0.00011881,2]
[327063632,1715771447977,-273.21,0.00011881,2]
[327063633,1715771447986,-485.6,0.00011881,2]
[327063634,1715771447996,-255.49503332,0.00011881,2]
[327063635,1715771448005,-593.31,0.00011881,2]
[327063636,1715771448014,-500.0,0.00011881,2]
[327063637,1715771448023,-500.0,0.00011881,2]
[327063638,1715771448032,-500.0,0.00011881,2]
[327063639,1715771448042,-500.0,0.00011881,2]
[327063640,1715771448051,-446.72,0.00011881,2]
[327063641,1715771448059,-500.0,0.00011881,2]
[327063642,1715771448068,-500.0,0.00011881,2]
[327063643,1715771448251,-639.4,0.00011881,2]
[327063644,1715771448260,-500.0,0.00011881,2]
[327063645,1715771448270,-500.0,0.00011881,2]
[327063646,1715771448279,-464.0,0.00011881,2]
[327063647,1715771448288,-574.4159485,0.00011881,2]
[327063648,1715771448296,-500.0,0.00011881,2]
[327063649,1715771448305,-500.0,0.00011881,2]
[327063650,1715771448315,-500.0,0.00011881,2]
[327063651,1715771448323,-1249.17,0.00011881,2]
[327063652,1715771448334,-1634.64,0.00011881,2]
[327063653,1715771448346,-500.0,0.00011881,2]
[327063654,1715771448355,-500.0,0.00011881,2]
[327063655,1715771448364,-500.0,0.00011881,2]
[327063656,1715771448374,-500.0,0.00011881,2]
[327063657,1715771448383,-500.0,0.00011881,2]
[327063658,1715771448392,-500.0,0.00011881,2]
[327063659,1715771448401,-579.42649071,0.00011881,2]
[327063660,1715771448412,-548.66009189,0.00011881,2]
[327063661,1715771448424,-500.0,0.00011881,2]
[327063662,1715771448434,-500.0,0.00011881,2]
[327063663,1715771448443,-298.37,0.00011881,2]
[327063664,1715771448453,-500.0,0.00011881,2]
[327063665,1715771448462,-500.0,0.00011881,2]
[327063666,1715771448472,-500.0,0.00011881,2]
[327063667,1715771448481,-394.60991649,0.00011881,2]
[327063668,1715771448490,-500.0,0.00011881,2]
[327063669,1715771448500,-523.8,0.00011881,2]
[327063670,1715771448508,-151.309042,0.00011882,2]
[327063671,1715771448517,-166.05476,0.00011882,2]
[327063672,1715771448527,-166.05476,0.00011882,2]
[327063673,1715771448537,-614.757503,0.00011882,2]
[327063674,1715771448546,-614.757503,0.00011882,2]
[327063675,1715771448555,-151.0,0.00011882,2]
[327063676,1715771448564,-151.0,0.00011882,2]
[327063677,1715771448573,-152.410268,0.00011882,2]
[327063678,1715771448583,-151.0,0.00011882,2]
[327063679,1715771448592,-151.0,0.00011882,2]
[327063680,1715771448601,-151.0,0.00011882,2]
[327063681,1715771448610,-151.0,0.00011882,2]
[327063682,1715771448620,-1413.959828,0.00011882,2]
[327063683,1715771448629,-151.0,0.00011882,2]
[327063684,1715771448638,-1413.959828,0.00011882,2]
[327063685,1715771448648,-151.0,0.00011882,2]
[327063686,1715771448659,-151.0,0.00011882,2]
[327063687,1715771448668,-151.0,0.00011882,2]
[327063688,1715771448677,-251.316394,0.00011882,2]
[327063689,1715771448687,-251.316394,0.00011882,2]
[327063690,1715771448696,-217.51719,0.00011882,2]
[327063691,1715771448705,-151.0,0.00011882,2]
[327063692,1715771448715,-689.725973,0.00011882,2]
[327063693,1715771448723,-689.725973,0.00011882,2]
[327063694,1715771448733,-151.0,0.00011882,2]
[327063695,1715771448742,-151.0,0.00011882,2]
[327063696,1715771448751,-151.0,0.00011882,2]
[327063697,1715771448760,-151.0,0.00011882,2]
[327063698,1715771448770,-151.0,0.00011882,2]
[327063699,1715771448779,-151.0,0.00011882,2]
[327063700,1715771448788,-151.0,0.00011882,2]
[327063701,1715771448797,-151.0,0.00011882,2]
[327063702,1715771448806,-160.958164,0.00011882,2]
[327063703,1715771448816,-420.553906,0.00011882,2]
[327063704,1715771448825,-420.553906,0.00011882,2]
[327063705,1715771448835,-14377.5010003,0.00011882,2]
[327063706,1715771448844,-151.0,0.00011882,2]
[327063707,1715771448854,-152.535288,0.00011882,2]
[327063708,1715771448863,-151.0,0.00011882,2]
[327063709,1715771448873,-98168.38089256,0.00011882,2]
[327063710,1715771448941,-12527.40530444,0.00011882,2]
[327063732,1715772135254,294.24,8.531e-05,2]
[327063735,1715772402201,-334.0,8.919e-05,2]
[327063736,1715772402223,-260.48203453,8.919e-05,2]
[327063737,1715772402243,-782.29340259,8.92e-05,2]
[327063738,1715772402262,-155.0,8.921e-05,2]
[327063739,1715772402281,-266.19309669,8.921e-05,2]
[327063740,1715772402301,-155.0,8.922e-05,2]
[327063741,1715772402323,-891.44584678,8.93e-05,2]
[327063749,1715772595249,279.52,8.518e-05,2]
[327063772,1715772635169,-495.404,0.00010144,2]
[327063773,1715772635181,-2221.95555259,0.00010195,2]
[327063774,1715772635191,-250.0,0.00010248,2]
[327063776,1715772635202,-297.44,0.00010367,2]
[327063779,1715772635213,-1500.0,0.000104,2]
[327063782,1715772635224,-360.0,0.00010407,2]
[327063784,1715772635234,-214.56,0.00010411,2]
[327063787,1715772635246,-194.29,0.00010411,2]
[327063789,1715772635256,-782.29340259,0.00010435,2]
[327063792,1715772635267,-260.48203453,0.00010436,2]
[327063793,1715772635277,-1233.79,0.00010437,2]
[327063794,1715772635287,-181.15,0.00010449,2]
[327063795,1715772635297,-150.0,0.00010511,2]
[327063796,1715772635307,-23890.0,0.00010512,2]
[327063797,1715772635318,-155.23469938,0.00010706,2]
[327063798,1715772635328,-640.0,0.00010763,2]
[327063799,1715772635338,-279.52,0.00010782,2]
[327063800,1715772635348,-155.0,0.00010957,2]
[327063801,1715772635358,-10000.0,0.00010959,2]
[327063802,1715772635369,-200.0,0.00011,2]
[327063803,1715772635379,-282.3483767,0.00011095,2]
[327063804,1715772635389,-869.03,0.00011096,2]
[327063805,1715772635399,-869.03,0.00011096,2]
[327063806,1715772635409,-848.03,0.00011096,2]
[327063807,1715772635419,-771.69215318,0.00011301,7]
[327063808,1715772635431,-300.0,0.0001137,2]
[327063809,1715772635441,-210.0,0.00011562,2]
[327063810,1715772635451,-1113.17365459,0.00011587,2]
[327063811,1715772635462,-1047.01141323,0.00011644,2]
[327063812,1715772635472,-360.0,0.00011707,2]
[327063813,1715772635483,-1807.5413,0.00011718,2]
[327063814,1715772635497,-1111.8507,0.00011718,2]
[327063815,1715772635507,-39888.8194,0.00011753,2]
[327063816,1715772635518,-3000.0,0.0001176,2]
[327063817,1715772635528,-150.0,0.00011777,2]
[327063818,1715772635538,-200.0,0.00011795,2]
[327063819,1715772635550,-14994.22930283,0.00011798,2]
[327063850,1715772641032,-155.0,0.00010434,2]
[327063851,1715772641043,-345.0,0.00011798,2]
[327063852,1715772641055,-2072.40157436,0.00011798,2]
[327063853,1715772641068,-436.38,0.00011798,2]
[327063961,1715772643879,-784.0,0.00010906,2]
[327063962,1715772643889,-300.0,0.000112,4]
[327063963,1715772643898,-690.02157532,0.00011798,2]
[327063964,1715772643910,-666.7400095,0.00011798,2]
[327063967,1715772646693,-325.90912183,0.000113,4]
[327063968,1715772646704,-274.09087817,0.000113,4]
[327063969,1715772646714,-9679.36886692,0.00011798,2]
[327063970,1715772646723,-180.21956279,0.00011798,2]
[327063971,1715772646734,-200.0,0.00011798,2]
[327063972,1715772646744,-1000.0,0.00011798,2]
[327063973,1715772646753,-500.0,0.00011798,2]
[327063974,1715772646763,-500.0,0.00011799,2]
[327063975,1715772646774,-500.0,0.00011799,2]
[327063976,1715772646783,-1061.49,0.00011799,2]
[327063977,1715772646792,-500.0,0.00011799,2]
[327063979,1715772646802,-500.0,0.00011799,2]
[327063980,1715772646811,-500.0,0.00011799,2]
[327063981,1715772646821,-262.57,0.00011799,2]
[327063982,1715772646831,-1647.0,0.00011818,2]
[327063983,1715772646841,-2351.0,0.00011818,2]
[327063984,1715772646851,-150.0,0.00011818,2]
[327063985,1715772646860,-444.0,0.00011818,2]
[327063986,1715772646870,-1126.658,0.00011818,2]
[327063987,1715772646879,-215.0,0.00011818,2]
[327063988,1715772646889,-3158.0,0.00011818,2]
[327063989,1715772646898,-1464.0,0.00011818,2]
[327063990,1715772646908,-973.0,0.00011818,2]
[327063991,1715772646918,-1397.0,0.00011818,2]
[327063992,1715772646927,-2147.532,0.00011818,2]
[327063993,1715772646938,-1059.0,0.00011818,2]
[327063994,1715772646948,-543.0,0.00011818,2]
[327063995,1715772646957,-1261.0,0.00011818,2]
[327063996,1715772646966,-28884.14132887,0.00011853,2]
[327063997,1715772646976,-154.11,0.00011872,2]
[327063998,1715772646985,-642.15073055,0.00011881,2]
[327063999,1715772646995,-500.0,0.00011881,2]
[327064000,1715772647004,-500.0,0.00011881,2]
[327064001,1715772647014,-500.0,0.00011881,2]
[327064002,1715772647024,-601.93256708,0.00011881,2]
[327064003,1715772647033,-180.50131205,0.00011881,2]
[327064004,1715772647043,-411.34929263,0.00011881,2]
[327064005,1715772647053,-500.0,0.00011881,2]
[327064006,1715772647063,-500.0,0.00011881,2]
[327064007,1715772647072,-514.52,0.00011881,2]
[327064008,1715772647082,-500.0,0.00011881,2]
[327064009,1715772647092,-500.0,0.00011881,2]
[327064010,1715772647102,-500.0,0.00011881,2]
[327064011,1715772647112,-500.0,0.00011881,2]
[327064012,1715772647122,-500.0,0.00011881,2]
[327064013,1715772647132,-425.75,0.00011881,2]
[327064014,1715772647141,-500.0,0.00011881,2]
[327064015,1715772647151,-500.0,0.00011881,2]
[327064016,1715772647161,-544.64195056,0.00011881,2]
[327064017,1715772647171,-522.03517508,0.00011881,2]
[327064018,1715772647180,-500.0,0.00011881,2]
[327064019,1715772647190,-506.67184097,0.00011881,2]
[327064020,1715772647200,-500.0,0.00011881,2]
[327064021,1715772647209,-1061.49,0.00011881,2]
[327064022,1715772647219,-500.0,0.00011881,2]
[327064023,1715772647229,-500.0,0.00011881,2]
[327064024,1715772647239,-500.0,0.00011881,2]
[327064025,1715772647248,-500.0,0.00011881,2]
[327064026,1715772647258,-500.0,0.00011881,2]
[327064027,1715772647267,-500.0,0.00011881,2]
[327064028,1715772647277,-500.0,0.00011881,2]
[327064029,1715772647287,-512.08349799,0.00011881,2]
[327064030,1715772647297,-500.0,0.00011881,2]
[327064031,1715772647307,-500.0,0.00011881,2]
[327064032,1715772647316,-164.40198896,0.00011881,2]
[327064033,1715772647326,-500.0,0.00011881,2]
[327064034,1715772647336,-500.0,0.00011881,2]
[327064035,1715772647346,-500.0,0.00011881,2]
[327064036,1715772647356,-500.0,0.00011881,2]
[327064037,1715772647366,-502.26539887,0.00011881,2]
[327064038,1715772647376,-574.55,0.00011881,2]
[327064039,1715772647386,-500.0,0.00011881,2]
[327064040,1715772647396,-500.0,0.00011881,2]
[327064041,1715772647406,-330.24127505,0.00011881,2]
[327064042,1715772647416,-500.0,0.00011881,2]
[327064043,1715772647426,-315.84286345,0.00011881,2]
[327064044,1715772647436,-500.0,0.00011881,2]
[327064045,1715772647446,-500.0,0.00011881,2]
[327064046,1715772647455,-500.0,0.00011881,2]
[327064047,1715772647464,-568.58,0.00011881,2]
[327064048,1715772647474,-433.14516545,0.00011881,2]
[327064049,1715772647484,-500.0,0.00011881,2]
[327064050,1715772647494,-500.0,0.00011881,2]
[327064051,1715772647504,-500.0,0.00011881,2]
[327064052,1715772647514,-586.12,0.00011881,2]
[327064053,1715772647524,-500.0,0.00011881,2]
[327064054,1715772647534,-500.0,0.00011881,2]
[327064055,1715772647544,-500.0,0.00011881,2]
[327064056,1715772647554,-500.0,0.00011881,2]
[327064057,1715772647563,-500.0,0.00011881,2]
[327064058,1715772647573,-500.0,0.00011881,2]
[327064059,1715772647583,-500.0,0.00011881,2]
[327064060,1715772647593,-500.0,0.00011881,2]
[327064061,1715772647603,-500.0,0.00011881,2]
[327064062,1715772647613,-500.0,0.00011881,2]
[327064063,1715772647623,-647.30163665,0.00011881,2]
[327064064,1715772647632,-1498.42,0.00011881,2]
[327064065,1715772647642,-500.0,0.00011881,2]
[327064066,1715772647651,-500.0,0.00011881,2]
[327064067,1715772647661,-500.0,0.00011881,2]
[327064068,1715772647670,-500.0,0.00011881,2]
[327064069,1715772647684,-387.24,0.00011881,2]
[327064070,1715772647695,-500.0,0.00011881,2]
[327064071,1715772647705,-500.0,0.00011881,2]
[327064072,1715772647715,-613.75633045,0.00011881,2]
[327064073,1715772647726,-500.0,0.00011881,2]
[327064074,1715772647736,-500.0,0.00011881,2]
[327064075,1715772647746,-568.65143942,0.00011881,2]
[327064076,1715772647755,-532.76546968,0.00011881,2]
[327064077,1715772647767,-500.0,0.00011881,2]
[327064078,1715772647777,-500.0,0.00011881,2]
[327064079,1715772647787,-500.0,0.00011881,2]
[327064080,1715772647797,-313.32983695,0.00011881,2]
[327064081,1715772647807,-500.0,0.00011881,2]
[327064082,1715772647817,-500.0,0.00011881,2]
[327064083,1715772647827,-298.75742106,0.00011882,2]
[327064084,1715772647837,-409.53880805,0.00011882,2]
[327064085,1715772647848,-548.53577545,0.00011882,2]
[327064086,1715772647858,-954.82652747,0.00011882,2]
[327064087,1715772647868,-2000.0,0.00011882,2]
[327064088,1715772647879,-200.0,0.00011882,2]
[327064089,1715772647889,-10811.8855608,0.00011882,2]
[327064090,1715772647898,-478.593026,0.00011882,2]
[327064091,1715772647908,-353.81148112,0.00011885,2]
[327064092,1715772647918,-4142.8976139,0.00011887,2]
[327064093,1715772647927,-64513.4914015,0.00011887,2]
[327064094,1715772647937,-150.01,0.00011888,2]
[327064095,1715772647947,-5865.7372962,0.00011888,2]
[327064096,1715772647957,-500.0,0.00011889,2]
[327064097,1715772647966,-498.69,0.00011889,2]
[327064098,1715772647976,-500.0,0.00011889,2]
[327064099,1715772647986,-500.0,0.00011889,2]
[327064100,1715772647995,-500.0,0.00011889,2]
[327064101,1715772648005,-975.44,0.00011889,2]
[327064102,1715772648015,-500.0,0.00011889,2]
[327064103,1715772648025,-646.95,0.00011889,2]
[327064104,1715772648034,-607.91014318,0.00011889,2]
[327064105,1715772648044,-500.0,0.00011889,2]
[327064106,1715772648053,-500.0,0.00011889,2]
[327064107,1715772648064,-503.59945844,0.00011889,2]
[327064108,1715772648073,-500.0,0.00011889,2]
[327064109,1715772648083,-500.0,0.00011889,2]
[327064110,1715772648092,-500.0,0.00011889,2]
[327064111,1715772648102,-292.12632138,0.00011889,2]
[327064112,1715772648111,-158.3,0.00011889,2]
[327064113,1715772648120,-548.65,0.00011889,2]
[327064114,1715772648129,-500.0,0.00011889,2]
[327064115,1715772648139,-1489.28,0.00011889,2]
[327064116,1715772648148,-514.14378815,0.00011889,2]
[327064117,1715772648157,-523.14261742,0.00011889,2]
[327064118,1715772648167,-500.0,0.00011889,2]
[327064119,1715772648176,-503.47197422,0.00011889,2]
[327064120,1715772648185,-249.52,0.00011889,2]
[327064121,1715772648195,-500.0,0.00011889,2]
[327064122,1715772648204,-500.0,0.00011889,2]
[327064123,1715772648214,-1197.12,0.00011889,2]
[327064124,1715772648224,-283.10564644,0.00011889,2]
[327064125,1715772648233,-922.07,0.00011889,2]
[327064126,1715772648242,-500.0,0.00011889,2]
[327064127,1715772648252,-500.0,0.00011889,2]
[327064128,1715772648261,-500.0,0.00011889,2]
[327064129,1715772648270,-612.79,0.00011889,2]
[327064130,1715772648280,-500.0,0.00011889,2]
[327064131,1715772648290,-503.92772086,0.00011889,2]
[327064132,1715772648300,-500.0,0.00011889,2]
[327064133,1715772648309,-500.0,0.00011889,2]
[327064134,1715772648319,-868.9635969,0.00011895,2]
[327064135,1715772648329,-223.65370089,0.00011895,2]
[327064136,1715772648339,-213.80292883,0.00011896,2]
[327064137,1715772648348,-298.39421916,0.00011896,2]
[327064138,1715772648358,-158.39167548,0.00011896,2]
[327064139,1715772648367,-711.19450635,0.00011896,2]
[327064140,1715772648377,-330.309552,0.00011896,2]
[327064141,1715772648386,-336.25747067,0.00011896,2]
[327064142,1715772648396,-325.092023,0.00011896,2]
[327064143,1715772648405,-224.22114685,0.00011896,2]
[327064144,1715772648415,-157.04666537,0.00011896,2]
[327064145,1715772648425,-225.97112315,0.00011896,2]
[327064146,1715772648435,-335.70453274,0.00011896,2]
[327064147,1715772648445,-155.0,0.00011896,2]
[327064148,1715772648455,-323.86893567,0.00011896,2]
[327064149,1715772648465,-165.95926671,0.00011896,2]
[327064150,1715772648474,-155.31720757,0.00011896,2]
[327064151,1715772648484,-2358.78776413,0.00011896,2]
[327064152,1715772648493,-969.72210365,0.00011896,2]
[327064153,1715772648503,-300.27460068,0.00011896,2]
[327064154,1715772648512,-157.54570993,0.00011896,2]
[327064155,1715772648522,-4425.44526103,0.00011896,2]
[327064156,1715772648532,-155.0,0.00011896,2]
[327064157,1715772648541,-155.12412876,0.00011896,2]
[327064158,1715772648551,-288.53491335,0.00011896,2]
[327064159,1715772648560,-206.37370365,0.00011896,2]
[327064160,1715772648571,-754.3,0.00011896,2]
[327064161,1715772648581,-206.3699626,0.00011896,2]
[327064162,1715772648590,-1952.72081127,0.00011896,5]
[327064163,1715772648600,-255.24116787,0.00011896,2]
[327064164,1715772648609,-236.08287886,0.00011896,2]
[327064165,1715772648619,-308.15932828,0.00011896,2]
[327064166,1715772648629,-1210.37915373,0.00011896,2]
[327064167,1715772648638,-411.55329871,0.00011896,2]
[327064168,1715772648648,-500.0,0.00011896,2]
[327064169,1715772648657,-500.0,0.00011896,2]
[327064170,1715772648666,-500.0,0.00011896,2]
[327064171,1715772648677,-500.0,0.00011896,2]
[327064172,1715772648689,-385.37,0.00011896,2]
[327064173,1715772648704,-513.91,0.00011896,2]
[327064174,1715772648714,-975.44,0.00011896,2]
[327064175,1715772648725,-500.0,0.00011896,2]
[327064176,1715772648735,-500.0,0.00011896,2]
[327064177,1715772648746,-500.0,0.00011896,2]
[327064178,1715772648756,-500.0,0.00011896,2]
[327064179,1715772648765,-500.0,0.00011896,2]
[327064180,1715772648774,-500.0,0.00011896,2]
[327064181,1715772648784,-500.0,0.00011896,2]
[327064182,1715772648793,-500.0,0.00011896,2]